fUST/lending_fUST_20250621
["ID","MTS","AMOUNT","RATE_DAILY","PERIOD"]
[366816240,1750470636236,-343.979212,0.0002195,7]
[366816241,1750470636245,-343.979213,0.0002195,7]
[366816242,1750470636255,-3000.0,0.0002196,2]
[366816243,1750470636265,-151.0,0.0002196,7]
[366816244,1750470636275,-151.0,0.0002196,7]
[366816245,1750470636285,-161.656002,0.0002196,2]
[366816246,1750470636294,-161.656002,0.0002196,2]
[366816247,1750470636304,-151.0,0.0002196,7]
[366816248,1750470636317,-151.0,0.0002196,7]
[366816249,1750470636327,-3000.0,0.0002197,2]
[366816250,1750470636336,-151.0,0.0002197,7]
[366816251,1750470636345,-151.0,0.0002197,7]
[366816252,1750470636354,-500.0,0.00021977,2]
[366816253,1750470636363,-3000.0,0.0002198,2]
[366816254,1750470636373,-151.0,0.0002198,7]
[366816255,1750470636382,-244.893054,0.0002198,7]
[366816256,1750470636391,-161.656002,0.0002198,2]
[366816257,1750470636400,-161.656002,0.0002198,2]
[366816258,1750470636409,-151.0,0.0002198,7]
[366816259,1750470636418,-151.0,0.0002198,7]
[366816260,1750470636428,-3000.0,0.0002199,2]
[366816261,1750470636438,-151.0,0.0002199,7]
[366816262,1750470636448,-191.0,0.00021997,2]
[366816263,1750470636457,-3000.0,0.00022,2]
[366816264,1750470636469,-151.0,0.00022,7]
[366816265,1750470636479,-161.656002,0.00022,2]
[366816266,1750470636488,-161.656002,0.00022,2]
[366816267,1750470636498,-151.0,0.00022,7]
[366816268,1750470636507,-151.0,0.00022,7]
[366816269,1750470636516,-161.0,0.00022,2]
[366816270,1750470636526,-512.53286379,0.00022,2]
[366816271,1750470636535,-529.38408961,0.0002201,2]
[366816272,1750470636545,-505.24604245,0.0002201,2]
[366816273,1750470636555,-3000.0,0.0002201,2]
[366816274,1750470636565,-151.0,0.0002201,7]
[366816275,1750470636575,-3000.0,0.0002202,2]
[366816276,1750470636585,-151.0,0.0002202,7]
[366816277,1750470636594,-161.656002,0.0002202,2]
[366816278,1750470636604,-161.656002,0.0002202,2]
[366816279,1750470636614,-151.0,0.0002202,7]
[366816280,1750470636624,-151.0,0.0002202,7]
[366816281,1750470636633,-151.0,0.0002202,7]
[366816282,1750470636643,-3000.0,0.0002203,2]
[366816283,1750470636653,-151.0,0.0002203,7]
[366816284,1750470636663,-151.0,0.0002203,7]
[366816285,1750470636673,-153.789681,0.0002203,7]
[366816286,1750470636683,-151.0,0.0002203,7]
[366816287,1750470636693,-151.0,0.0002203,7]
[366816288,1750470636703,-154.601889,0.0002203,7]
[366816289,1750470636713,-161.656002,0.0002203,2]
[366816290,1750470636722,-161.656002,0.0002203,2]
[366816291,1750470636732,-151.0,0.0002203,7]
[366816292,1750470636741,-151.0,0.0002203,7]
[366816293,1750470636751,-153.775452,0.0002203,7]
[366816294,1750470636761,-2845.07677092,0.00022038,6]
[366816295,1750470636770,-161.656002,0.00022038,2]
[366816296,1750470636780,-161.656003,0.00022038,2]
[366816297,1750470636790,-151.0,0.00022038,7]
[366816298,1750470636799,-151.0,0.00022038,7]
[366816299,1750470636809,-3000.0,0.0002204,2]
[366816300,1750470636818,-376.79,0.0002204,3]
[366816301,1750470636828,-3000.0,0.0002205,2]
[366816302,1750470636837,-160.0,0.00022059,2]
[366816303,1750470636847,-3000.0,0.0002206,2]
[366816304,1750470636856,-151.0,0.0002206,7]
[366816305,1750470636866,-151.0,0.0002206,7]
[366816306,1750470636876,-151.882375,0.0002206,7]
[366816307,1750470636885,-151.0,0.0002206,7]
[366816308,1750470636895,-151.0,0.0002206,7]
[366816309,1750470636904,-501.74551686,0.00022063,2]
[366816310,1750470636914,-3000.0,0.0002207,2]
[366816311,1750470636923,-154.697067,0.0002207,7]
[366816312,1750470636933,-500.0,0.0002207,2]
[366816313,1750470636942,-5970.631641,0.0002208,2]
[366816314,1750470636951,-152.20385,0.0002208,7]
[366816315,1750470636961,-300.059628,0.0002208,7]
[366816316,1750470636970,-511.96825723,0.0002211,2]
[366816317,1750470636979,-503.45870411,0.00022125,2]
[366816318,1750470636989,-420.0,0.00022138,2]
[366816319,1750470636998,-420.0,0.00022138,2]
[366816320,1750470637008,-731.0967628,0.00022164,2]
[366816321,1750470637017,-2845.07677092,0.00022176,6]
[366816322,1750470637026,-460.0,0.00022191,2]
[366816323,1750470637036,-460.0,0.00022191,2]
[366816324,1750470637045,-285.61057004,0.00022191,2]
[366816325,1750470637054,-566.0,0.00022191,2]
[366816326,1750470637064,-460.0,0.00022191,2]
[366816327,1750470637073,-543.25836591,0.00022191,2]
[366816328,1750470637082,-460.0,0.00022191,2]
[366816329,1750470637092,-460.0,0.00022191,2]
[366816330,1750470637101,-460.73,0.00022191,2]
[366816331,1750470637111,-460.0,0.00022191,2]
[366816332,1750470637120,-460.0,0.00022191,2]
[366816333,1750470637130,-160.0,0.00022202,3]
[366816334,1750470637139,-494.45391771,0.00022217,2]
[366816335,1750470637148,-503.5497289,0.00022217,2]
[366816336,1750470637158,-191.0,0.0002224,2]
[366816337,1750470637167,-999.195213,0.00022284,4]
[366816338,1750470637177,-891.85354675,0.00022288,2]
[366816339,1750470637186,-739.34,0.00022299,7]
[366816340,1750470637195,-2347.0,0.00022305,2]
[366816341,1750470637204,-2845.07677092,0.00022314,7]
[366816342,1750470637214,-160.0,0.00022329,2]
[366816343,1750470637224,-12546.90244252,0.00022329,2]
[366816344,1750470637233,-160.0,0.00022329,2]
[366816345,1750470637242,-739.34,0.00022399,2]
[366816346,1750470637251,-2845.07677092,0.00022452,7]
[366816347,1750470637260,-220.00894728,0.00022465,2]
[366816348,1750470637270,-460.0,0.00022465,2]
[366816349,1750470637280,-566.0,0.00022465,2]
[366816350,1750470637289,-460.0,0.00022465,2]
[366816351,1750470637299,-460.0,0.00022465,2]
[366816352,1750470637308,-460.0,0.00022465,2]
[366816353,1750470637321,-460.73,0.00022465,2]
[366816354,1750470637331,-460.0,0.00022465,2]
[366816355,1750470637342,-460.0,0.00022465,2]
[366816356,1750470637351,-739.34,0.00022499,2]
[366816357,1750470637363,-1002.383476,0.000225,2]
[366816358,1750470637372,-1005.83899828,0.00022525,2]
[366816359,1750470637382,-168.0,0.00022572,2]
[366816360,1750470637393,-2845.07677092,0.0002259,7]
[366816361,1750470637402,-739.34,0.00022599,4]
[366816362,1750470637412,-1000.0,0.00022618,2]
[366816363,1750470637423,-26837.04276924,0.00022639,2]
[366816364,1750470637432,-168.0,0.00022673,2]
[366816365,1750470637442,-739.34,0.00022699,2]
[366816366,1750470637451,-2845.07677092,0.00022728,7]
[366816367,1750470637461,-460.0,0.00022739,2]
[366816368,1750470637471,-566.0,0.00022739,2]
[366816369,1750470637481,-480.0,0.00022739,2]
[366816370,1750470637490,-460.0,0.00022739,2]
[366816372,1750470637500,-460.0,0.00022739,2]
[366816373,1750470637510,-460.73,0.00022739,2]
[366816374,1750470637520,-460.0,0.00022739,2]
[366816375,1750470637530,-460.0,0.00022739,2]
[366816376,1750470637539,-968.567,0.00022743,2]
[366816377,1750470637549,-2169.4,0.00022743,2]
[366816378,1750470637559,-655.189,0.00022743,2]
[366816379,1750470637569,-408.91,0.00022743,2]
[366816380,1750470637578,-891.85354675,0.00022758,2]
[366816381,1750470637588,-3342.6889473,0.00022768,2]
[366816382,1750470637598,-500.0,0.00022773,2]
[366816383,1750470637608,-503.4769817,0.00022773,2]
[366816384,1750470637617,-260.66983979,0.00022773,2]
[366816385,1750470637627,-500.0,0.00022773,2]
[366816386,1750470637636,-500.0,0.00022773,2]
[366816387,1750470637646,-500.0,0.00022773,2]
[366816388,1750470637656,-563.37244798,0.00022773,2]
[366816389,1750470637665,-500.0,0.00022773,2]
[366816390,1750470637675,-500.0,0.00022773,2]
[366816391,1750470637685,-739.34,0.00022799,3]
[366816392,1750470637695,-116519.84773786,0.000228,2]
[366816437,1750470638267,-151.0,0.000212,2]
[366816439,1750470638277,-151.0,0.000212,2]
[366816441,1750470638287,-151.0,0.00021364,2]
[366816443,1750470638296,-152.007365,0.00021364,2]
[366816445,1750470638306,-295.75860817,0.000218,2]
[366816447,1750470638319,-993.77728767,0.000228,2]
[366816635,1750470643209,-442.42788635,0.00021939,2]
[366816636,1750470643219,-57.57211365,0.000228,2]
[366816646,1750470900958,164.077256,0.00013699,2]
[366816647,1750470905251,200.0,0.00022019,30]
[366816648,1750470905491,211.02961964,0.00022293,30]
[366816842,1750471911274,164.022589,0.00013699,2]
[366816844,1750472140414,750.0,0.00024658,120]
[366816846,1750472553855,663754.78534963,0.00019102,2]
[366816847,1750472562783,1037588.6,0.00019102,2]
[366816848,1750472573827,-163.01618379,0.00019558,2]
[366816849,1750472605247,-151.0,0.00019558,2]
[366816850,1750472643899,-165.39116841,0.00019557,2]
[366816851,1750472676944,-160.0,0.00019458,2]
[366816852,1750472761670,1125.36099001,0.00019102,2]
[366816854,1750472854128,1473.44079353,0.00025043,120]
[366816855,1750472885871,1822.13988907,0.00025043,60]
[366816856,1750472916368,1028.3075105,0.00025043,60]
[366816857,1750472918175,851.14036646,0.00025043,120]
[366816859,1750472922269,3420.95727082,0.00025043,60]
[366816860,1750472923092,245.03057007,0.00025043,120]
[366816861,1750472923219,1114.78779253,0.00025043,120]
[366816862,1750472924167,1039.96955581,0.00025043,120]
[366816863,1750472924388,202.811511,0.00025043,120]
[366816864,1750472927108,501.24091654,0.00025043,120]
[366816870,1750472979806,164.022589,0.00013699,2]
[366816924,1750473032593,-151.0,0.00019458,2]
[366816925,1750473032604,-169.394,0.00020535,2]
[366816926,1750473032614,-173.599936,0.00021,2]
[366816927,1750473032624,-160.0,0.00021394,2]
[366816928,1750473032634,-160.0,0.00021394,2]
[366816929,1750473032643,-213.55395994,0.00021394,2]
[366816930,1750473032653,-846.23824438,0.00021394,2]
[366816931,1750473032663,-230.10342898,0.00021394,2]
[366816932,1750473032672,-730.1222459,0.000215,2]
[366816933,1750473032682,-300.0,0.00021599,2]
[366816934,1750473032692,-1000.0,0.000216,2]
[366816935,1750473032702,-1000.0,0.000216,3]
[366816937,1750473032712,-1000.0,0.000216,4]
[366816939,1750473032729,-2773.4077425,0.00021644,2]
[366817005,1750473034748,1000.0,0.000246,120]
[366817025,1750473038614,-2226.5922575,0.00021644,2]
[366817026,1750473038624,-3588.89905397,0.00021644,2]
[366817027,1750473038635,-500.0,0.00021644,2]
[366817029,1750473038645,-500.0,0.00021644,2]
[366817031,1750473038654,-500.0,0.00021644,2]
[366817033,1750473038664,-500.0,0.00021644,2]
[366817035,1750473038674,-500.0,0.00021644,2]
[366817037,1750473038684,-500.0,0.00021644,2]
[366817039,1750473038693,-500.0,0.00021644,2]
[366817041,1750473038703,-515.67658942,0.00021644,2]
[366817044,1750473038715,-500.0,0.00021644,2]
[366817046,1750473038725,-500.0,0.00021644,2]
[366817048,1750473038734,-500.0,0.00021644,2]
[366817050,1750473038743,-500.0,0.00021644,2]
[366817052,1750473038754,-207.4,0.00021644,2]
[366817054,1750473038764,-500.0,0.00021644,2]
[366817056,1750473038773,-500.0,0.00021644,2]
[366817058,1750473038783,-500.0,0.00021644,2]
[366817060,1750473038792,-500.0,0.00021644,2]
[366817062,1750473038803,-500.0,0.00021644,2]
[366817063,1750473038812,-500.0,0.00021644,2]
[366817064,1750473038822,-500.0,0.00021644,2]
[366817065,1750473038831,-534.29428587,0.00021644,2]
[366817066,1750473038841,-1000.0,0.000218,5]
[366817067,1750473038851,-1000.0,0.000218,6]
[366817068,1750473038860,-269.04368008,0.000218,2]
[366817069,1750473038869,-218.60418171,0.0002181,2]
[366817070,1750473038879,-160.0,0.00021873,2]
[366817071,1750473038889,-424.85694595,0.00021873,2]
[366817072,1750473038898,-160.0,0.00021873,2]
[366817073,1750473038908,-160.0,0.00021873,2]
[366817074,1750473038918,-836.27303475,0.00021874,2]
[366817075,1750473038928,-164.006975,0.000219,2]
[366817076,1750473038937,-9766.32922404,0.000219,2]
[366817077,1750473038947,-2874.8465779,0.000219,6]
[366817078,1750473038956,-654.0,0.00021906,2]
[366817079,1750473038965,-2161.0,0.00021906,2]
[366817080,1750473038975,-309.69952045,0.00021916,2]
[366817081,1750473038985,-474.97254624,0.00021917,2]
[366817082,1750473038994,-460.0,0.00021917,2]
[366817083,1750473039003,-460.0,0.00021917,2]
[366817084,1750473039013,-538.35074697,0.00021917,2]
[366817085,1750473039023,-460.0,0.00021917,2]
[366817086,1750473039032,-460.0,0.00021917,2]
[366817087,1750473039042,-534.73497485,0.00021917,2]
[366817088,1750473039052,-460.0,0.00021917,2]
[366817089,1750473039062,-460.0,0.00021917,2]
[366817090,1750473039071,-460.0,0.00021917,2]
[366817091,1750473039080,-460.0,0.00021917,2]
[366817092,1750473039090,-460.0,0.00021917,2]
[366817093,1750473039100,-460.0,0.00021917,2]
[366817094,1750473039110,-460.0,0.00021917,2]
[366817095,1750473039120,-460.0,0.00021917,2]
[366817096,1750473039129,-460.0,0.00021917,2]
[366817097,1750473039139,-565.76,0.00021917,2]
[366817098,1750473039149,-460.0,0.00021917,2]
[366817099,1750473039158,-279.45435886,0.00021917,2]
[366817100,1750473039168,-460.0,0.00021917,2]
[366817101,1750473039178,-199.97087402,0.00021917,2]
[366817102,1750473039189,-460.0,0.00021917,2]
[366817103,1750473039199,-221.46982966,0.00021917,2]
[366817104,1750473039208,-460.0,0.00021917,2]
[366817105,1750473039219,-460.0,0.00021917,2]
[366817106,1750473039228,-500.0,0.00021917,2]
[366817107,1750473039238,-460.0,0.00021917,2]
[366817108,1750473039247,-493.62728534,0.00021917,2]
[366817109,1750473039258,-601.79147875,0.00021917,2]
[366817110,1750473039267,-460.0,0.00021917,2]
[366817111,1750473039277,-460.0,0.00021917,2]
[366817112,1750473039287,-460.0,0.00021917,2]
[366817113,1750473039297,-460.0,0.00021917,2]
[366817114,1750473039306,-460.0,0.00021917,2]
[366817115,1750473039316,-496.45,0.00021917,2]
[366817116,1750473039329,-460.0,0.00021917,2]
[366817117,1750473039339,-460.0,0.00021917,2]
[366817118,1750473039348,-460.0,0.00021917,2]
[366817119,1750473039358,-460.0,0.00021917,2]
[366817120,1750473039367,-460.0,0.00021917,2]
[366817121,1750473039378,-460.0,0.00021917,2]
[366817122,1750473039388,-460.0,0.00021917,2]
[366817123,1750473039398,-174.0,0.00022,3]
[366817124,1750473039408,-25088.9917364,0.00022,2]
[366817125,1750473039418,-176.0,0.00022,2]
[366817126,1750473039428,-2874.84657783,0.00022038,6]
[366817127,1750473039438,-2874.84657783,0.00022176,6]
[366817128,1750473039448,-460.0,0.00022191,2]
[366817129,1750473039458,-460.0,0.00022191,2]
[366817130,1750473039467,-460.0,0.00022191,2]
[366817131,1750473039477,-460.0,0.00022191,2]
[366817132,1750473039487,-460.0,0.00022191,2]
[366817133,1750473039497,-460.0,0.00022191,2]
[366817134,1750473039507,-460.0,0.00022191,2]
[366817135,1750473039517,-373.60835259,0.00022191,2]
[366817136,1750473039527,-460.0,0.00022191,2]
[366817137,1750473039537,-460.0,0.00022191,2]
[366817138,1750473039547,-460.0,0.00022191,2]
[366817139,1750473039557,-460.0,0.00022191,2]
[366817140,1750473039566,-460.0,0.00022191,2]
[366817141,1750473039575,-565.76,0.00022191,2]
[366817142,1750473039585,-460.0,0.00022191,2]
[366817143,1750473039608,-460.0,0.00022191,2]
[366817144,1750473039619,-554.28777927,0.00022191,2]
[366817145,1750473039629,-460.0,0.00022191,2]
[366817146,1750473039640,-500.0,0.00022191,2]
[366817147,1750473039650,-460.0,0.00022191,2]
[366817148,1750473039660,-460.0,0.00022191,2]
[366817149,1750473039669,-460.0,0.00022191,2]
[366817150,1750473039679,-460.0,0.00022191,2]
[366817151,1750473039689,-460.0,0.00022191,2]
[366817152,1750473039700,-460.0,0.00022191,2]
[366817153,1750473039710,-496.45,0.00022191,2]
[366817154,1750473039720,-460.0,0.00022191,2]
[366817155,1750473039729,-460.0,0.00022191,2]
[366817156,1750473039740,-460.0,0.00022191,2]
[366817157,1750473039750,-460.0,0.00022191,2]
[366817158,1750473039760,-460.0,0.00022191,2]
[366817159,1750473039771,-460.0,0.00022191,2]
[366817160,1750473039782,-460.0,0.00022191,2]
[366817161,1750473039793,-269.04368007,0.00022243,2]
[366817162,1750473039803,-356.7414187,0.00022244,2]
[366817163,1750473039815,-168.0,0.0002229,2]
[366817164,1750473039826,-5000.0,0.00022295,7]
[366817165,1750473039837,-151.0,0.00022295,7]
[366817166,1750473039849,-719.15,0.00022296,2]
[366817167,1750473039859,-2874.84657783,0.00022314,7]
[366817168,1750473039878,-494.6,0.00022334,3]
[366817169,1750473039894,-10000.0,0.00022344,4]
[366817170,1750473039908,-173.158095,0.00022344,7]
[366817171,1750473039922,-151.0,0.00022344,7]
[366817172,1750473039936,-151.0,0.00022344,7]
[366817173,1750473039949,-151.0,0.00022344,2]
[366817174,1750473039964,-900.904553,0.00022344,4]
[366817175,1750473039975,-151.0,0.00022344,7]
[366817176,1750473039987,-151.0,0.00022344,7]
[366817177,1750473039999,-151.0,0.00022344,7]
[366817178,1750473040013,-151.0,0.00022344,7]
[366817179,1750473040026,-151.0,0.00022344,7]
[366817180,1750473040038,-151.0,0.00022344,7]
[366817181,1750473040051,-176.069672,0.00022344,7]
[366817182,1750473040063,-176.069672,0.00022344,7]
[366817183,1750473040076,-151.0,0.00022344,7]
[366817185,1750473040088,-151.0,0.00022344,7]
[366817186,1750473040101,-151.0,0.00022344,7]
[366817187,1750473040114,-151.0,0.00022344,7]
[366817188,1750473040126,-151.0,0.00022344,7]
[366817189,1750473040138,-151.0,0.00022344,7]
[366817190,1750473040151,-151.0,0.00022344,7]
[366817191,1750473040165,-154.401029,0.00022344,7]
[366817192,1750473040182,-151.0,0.00022344,7]
[366817193,1750473040196,-151.0,0.00022344,7]
[366817194,1750473040208,-169.42703452,0.00022363,2]
[366817195,1750473040221,-168.0,0.00022381,2]
[366817196,1750473040233,-719.15,0.00022396,4]
[366817198,1750473040245,-217.237617,0.00022396,7]
[366817199,1750473040260,-266.73998914,0.00022404,2]
[366817200,1750473040275,-501.33909667,0.00022404,2]
[366817201,1750473040289,-502.33070302,0.00022404,2]
[366817202,1750473040302,-500.0,0.00022404,2]
[366817203,1750473040316,-514.47048121,0.00022404,2]
[366817204,1750473040332,-500.51038034,0.00022404,2]
[366817205,1750473040345,-501.28333131,0.00022404,2]
[366817206,1750473040358,-264.66609239,0.00022404,2]
[366817207,1750473040370,-256.63666679,0.00022419,2]
[366817208,1750473040382,-501.02823414,0.00022419,2]
[366817209,1750473040395,-506.27587213,0.00022419,2]
[366817210,1750473040408,-501.23785456,0.00022419,2]
[366817211,1750473040418,-502.38615315,0.00022419,2]
[366817212,1750473040430,-502.51764797,0.00022419,2]
[366817213,1750473040441,-154.24575744,0.00022419,2]
[366817214,1750473040453,-500.0,0.00022419,2]
[366817215,1750473040464,-501.90290909,0.00022419,2]
[366817216,1750473040476,-151.0,0.00022429,7]
[366817217,1750473040488,-502.27731976,0.00022429,2]
[366817218,1750473040500,-500.0,0.00022429,2]
[366817219,1750473040512,-318.31523256,0.00022429,2]
[366817220,1750473040524,-2874.84657783,0.00022452,7]
[366817221,1750473040537,-497.74446575,0.00022465,2]
[366817222,1750473040550,-324.02169595,0.00022465,2]
[366817223,1750473040563,-492.79770349,0.00022465,2]
[366817224,1750473040576,-507.96799129,0.00022465,2]
[366817225,1750473040588,-460.0,0.00022465,2]
[366817226,1750473040601,-460.0,0.00022465,2]
[366817227,1750473040613,-488.99285256,0.00022465,2]
[366817228,1750473040625,-511.90852494,0.00022465,2]
[366817229,1750473040637,-602.94609181,0.00022465,2]
[366817230,1750473040651,-523.15719912,0.00022465,2]
[366817231,1750473040662,-534.40608384,0.00022465,2]
[366817232,1750473040673,-565.76,0.00022465,2]
[366817233,1750473040683,-295.734244,0.00022465,7]
[366817234,1750473040694,-517.16077935,0.00022465,2]
[366817235,1750473040704,-507.8542476,0.00022465,2]
[366817236,1750473040714,-580.33256488,0.00022465,2]
[366817237,1750473040725,-508.8269544,0.00022465,2]
[366817238,1750473040736,-460.0,0.00022465,2]
[366817239,1750473040749,-151.0,0.00022465,7]
[366817240,1750473040760,-460.0,0.00022465,2]
[366817241,1750473040777,-499.43643572,0.00022465,2]
[366817242,1750473040789,-460.0,0.00022465,2]
[366817243,1750473040802,-422.76814696,0.00022465,2]
[366817244,1750473040813,-564.8842357,0.00022465,2]
[366817245,1750473040823,-496.45,0.00022465,2]
[366817246,1750473040834,-460.0,0.00022465,2]
[366817247,1750473040847,-460.0,0.00022465,2]
[366817248,1750473040858,-517.21077304,0.00022465,2]
[366817249,1750473040870,-486.96810148,0.00022465,2]
[366817250,1750473040881,-546.09589819,0.00022465,2]
[366817251,1750473040895,-460.0,0.00022465,2]
[366817252,1750473040907,-503.92653134,0.00022483,2]
[366817253,1750473040919,-500.0,0.00022483,2]
[366817254,1750473040930,-500.94782065,0.00022483,2]
[366817255,1750473040941,-500.0,0.00022483,2]
[366817256,1750473040951,-503.05116636,0.00022483,2]
[366817257,1750473040961,-500.0,0.00022488,2]
[366817258,1750473040972,-500.0,0.00022488,2]
[366817259,1750473040982,-406.0,0.00022492,2]
[366817260,1750473040993,-151.0,0.00022492,7]
[366817261,1750473041005,-151.0,0.00022492,7]
[366817262,1750473041016,-151.0,0.00022492,7]
[366817263,1750473041027,-151.0,0.00022492,7]
[366817264,1750473041038,-151.0,0.00022492,7]
[366817265,1750473041050,-719.15,0.00022496,5]
[366817266,1750473041061,-168.0,0.00022512,2]
[366817267,1750473041073,-500.94353965,0.00022543,2]
[366817268,1750473041085,-151.0,0.00022543,7]
[366817269,1750473041098,-249.357998,0.00022543,7]
[366817270,1750473041110,-151.0,0.00022543,7]
[366817271,1750473041123,-151.0,0.00022543,7]
[366817272,1750473041135,-151.0,0.00022543,7]
[366817273,1750473041147,-2874.84657783,0.0002259,7]
[366817274,1750473041160,-168.0,0.00022591,2]
[366817275,1750473041172,-719.15,0.00022596,7]
[366817276,1750473041184,-174.0,0.000226,4]
[366817277,1750473041196,-151.0,0.00022624,7]
[366817278,1750473041208,-151.0,0.00022624,7]
[366817279,1750473041220,-151.0,0.00022624,7]
[366817280,1750473041231,-356.7414187,0.00022658,2]
[366817281,1750473041242,-269.04368007,0.00022687,2]
[366817282,1750473041253,-719.15,0.00022696,6]
[366817283,1750473041264,-151.0,0.000227,7]
[366817284,1750473041276,-151.0,0.000227,2]
[366817285,1750473041288,-151.0,0.000227,7]
[366817286,1750473041299,-151.0,0.000227,7]
[366817287,1750473041310,-176.069672,0.000227,7]
[366817288,1750473041322,-176.069672,0.000227,7]
[366817289,1750473041335,-181.33082,0.000227,7]
[366817290,1750473041346,-151.0,0.000227,7]
[366817291,1750473041358,-151.0,0.000227,7]
[366817292,1750473041370,-151.0,0.000227,7]
[366817293,1750473041381,-151.0,0.000227,7]
[366817294,1750473041393,-168.0,0.00022714,2]
[366817295,1750473041403,-2874.84657783,0.00022728,7]
[366817296,1750473041416,-565.76,0.00022739,2]
[366817297,1750473041427,-460.0,0.00022739,2]
[366817298,1750473041438,-288.744084,0.00022739,7]
[366817299,1750473041626,-460.0,0.00022739,2]
[366817300,1750473041644,-460.0,0.00022739,2]
[366817301,1750473041655,-496.45,0.00022739,2]
[366817302,1750473041665,-460.0,0.00022739,2]
[366817303,1750473041676,-460.0,0.00022739,2]
[366817304,1750473041687,-842.07665499,0.00022751,2]
[366817305,1750473041698,-168.0,0.00022762,2]
[366817306,1750473041707,-498.58365252,0.00022773,2]
[366817307,1750473041717,-151.0,0.00022786,7]
[366817308,1750473041727,-151.99377,0.00022786,7]
[366817309,1750473041737,-151.0,0.00022786,7]
[366817310,1750473041747,-151.0,0.00022786,7]
[366817311,1750473041756,-233.467374,0.00022786,7]
[366817312,1750473041766,-151.0,0.00022786,2]
[366817313,1750473041776,-176.069672,0.00022786,7]
[366817314,1750473041786,-176.069672,0.00022786,7]
[366817315,1750473041796,-719.15,0.00022796,4]
[366817316,1750473041806,-500.0,0.00022796,4]
[366817317,1750473041816,-460.0,0.00022799,2]
[366817318,1750473041826,-3712.08,0.000228,7]
[366817319,1750473041835,-1239.99,0.000228,7]
[366817320,1750473041845,-1564.474367,0.000228,2]
[366817321,1750473041855,-193.667014,0.000228,7]
[366817322,1750473041865,-151.0,0.000228,7]
[366817323,1750473041875,-151.0,0.000228,7]
[366817324,1750473041885,-151.0,0.000228,7]
[366817325,1750473041895,-151.0,0.000228,7]
[366817326,1750473041904,-325.42,0.000228,2]
[366817327,1750473041914,-151.0,0.000228,2]
[366817328,1750473041924,-151.0,0.000228,7]
[366817329,1750473041934,-1000.0,0.000228,2]
[366817330,1750473041944,-151.0,0.000228,7]
[366817331,1750473041953,-150.481369,0.000228,2]
[366817332,1750473041963,-176.069672,0.000228,7]
[366817333,1750473041973,-176.069672,0.000228,7]
[366817334,1750473041983,-151.0,0.000228,7]
[366817335,1750473041993,-151.0,0.000228,7]
[366817336,1750473042003,-44961.47151837,0.000228,5]
[366817337,1750473042013,-151.0,0.000228,7]
[366817338,1750473042022,-1262.85,0.000228,7]
[366817339,1750473042032,-514.60943347,0.00022823,4]
[366817340,1750473042042,-1782.22601289,0.0002285,3]
[366817341,1750473042051,-2874.84657783,0.00022866,8]
[366817342,1750473042061,-719.15,0.00022896,5]
[366817343,1750473042071,-160.0,0.000229,3]
[366817344,1750473042081,-166.79744706,0.000229,5]
[366817345,1750473042091,-640.0,0.000229,2]
[366817346,1750473042101,-164.3238365,0.00022932,2]